Cogmind - Beta 15 @@@ ROGUE MODE // 2025.09.23 @ 18:56:54 Player: luka.null Result: Destroyed self via exploding Nuclear Reactor Performance ------------- Evolutions (0) 0 Regions Visited (1) 200 Robots Destroyed (11) 55 Value Destroyed (245) 245 Prototype IDs (0) 0 Alien Tech Used (0) 0 Bonus (0) 0 TOTAL SCORE: 500 Bonus ------- None Cogmind --------- Core Integrity 0/250 Matter 264/300 Energy 100/100 System Corruption 1% Temperature Cool (6) Movement Rolling (200) Ox8 Location -10/Materials Parts ------- > --- POWER (1) -------- (None) > --- PROPULSION (2) --- Wheel Flight Unit > --- UTILITY (2) ------ Huge Storage Unit ECM Suite > --- WEAPON (2) ------- Light Assault Rifle Light Assault Rifle > --- INVENTORY (25) --- Ion Engine Core Shielding Peak State ------------ > --- POWER ------------ Ion Engine > --- PROPULSION ------- Wheel Wheel > --- UTILITY ---------- Small Storage Unit ECM Suite > --- WEAPON ----------- EM Pulse Gun EM Pulse Gun > --- INVENTORY -------- Light Assault Rifle [Rating: 7] Favorites ----------- Power Light Ion Engine Engine Light Ion Engine Propulsion Wheel Wheel Wheel Flight Unit Flight Unit Utility ECM Suite Device ECM Suite Storage Huge Storage Unit Weapon Light Assault Rifle Energy Gun EM Pulse Gun Ballistic Gun Light Assault Rifle Build | -11 -10 ------- Run | Yrd Mat Slots Evolved . | . . Power . | . . Propulsion . | . . Utility . | . . Weapon . | . . Parts Attached 13 | 7 6 Power 2 | 1 1 Engine 2 | 1 1 Core . | . . Reactor . | . . Propulsion 4 | 2 2 Treads . | . . Leg . | . . Wheel 2 | 2 . Hover . | . . Flight 2 | . 2 Utility 3 | 1 2 Device 1 | . 1 Storage 2 | 1 1 Processor . | . . Hackware . | . . Protection . | . . Artifact . | . . Weapon 4 | 3 1 Energy Gun 2 | 2 . Energy Cannon . | . . Ballistic Gun 2 | 1 1 Ballistic Cannon . | . . Launcher . | . . Special Weapon . | . . Impact Weapon . | . . Slashing Weapon . | . . Piercing Weapon . | . . Special Melee Weapon . | . . Unidentified Prototypes . | . . Parts Lost 4 | . 4 Power 1 | . 1 Propulsion 1 | . 1 Utility . | . . Weapon 2 | . 2 Highest Loss Streak 3 | . 3 To Critical Strikes . | . . Average Backups 1 | . 1 Power . | . . Propulsion . | . . Utility . | . . Weapon . | . . Tool/Special . | . . Unused Backups 1 | . 1 Power . | . . Propulsion . | . . Utility 1 | . 1 Weapon . | . . Tool/Special . | . . Average Slot Usage (%) 98 | . 98 Engine 14 | . 14 Wheel 20 | . 20 Flight 7 | . 7 Device 13 | . 13 Storage 14 | . 14 Energy Gun 11 | . 11 Ballistic Gun 15 | . 15 Peak Build Rating 7 | 6 7 Average Rating 6 | 4 6 On Entrance 3 | . 6 Naked Turns . | . . Heaviest Build 91 | 14 91 Greatest Support 20 | 20 20 Greatest Overweight (x) 21 | . 21 Average Overweight (x) 2 | . 2 Largest Inventory Capacity 25 | 8 25 Average Capacity 18 | 7 19 Most Carried 3 | 1 3 Average Carried 1 | . 1 Final Capacity 25 | 8 25 Final Carried 2 | 1 2 Class Distribution -------------------- 100% | Mutant Dominant Class ---------------- Mutant | -10/Materials Resources | -11 -10 ----------- Run | Yrd Mat Matter Collected 335 | 217 118 Remotely . | . . Salvage Created 339 | . 339 Parts 24 | . 24 Haulers Intercepted . | . . Recyclers Shooed 2 | . 2 Parts Field Recycled . | . . Retrieved Matter . | . . Parts Self-Destructed . | . . Prevented . | . . Kills | -11 -10 ------- Run | Yrd Mat Combat Hostiles Destroyed 10 | . 10 Guns 5 | . 5 AOE 5 | . 5 Classes Destroyed 3 | . 3 Recycler 1 | . 1 Swarmer 6 | . 6 Grunt 4 | . 4 Best Kill Streak 5 | . 5 Combat Bots Only 5 | . 5 Max Kills in Single Turn 3 | . 3 Gunslinging . | . . Exploded 3 | . 3 Melee . | . . Uniques/NPCs Destroyed . | . . Combat | -11 -10 -------- Run | Yrd Mat Hostile Shots Fired 65 | . 65 Missed 18 | . 18 Hits 47 | . 47 Projectile 47 | . 47 Damage Taken 657 | . 657 Core 313 | . 313 Absorbed by Shields . | . . Core Remaining (%) 100 | 100 . Volleys Fired 27 | . 27 Largest 2 | . 2 Hottest 80 | . 80 Shots Fired 46 | . 46 Gun 46 | . 46 Cannon . | . . Launcher . | . . Special . | . . Kinetic 29 | . 29 Thermal . | . . Explosive . | . . Electromagnetic 17 | . 17 Robot Hit Streak 6 | . 6 Robot Miss Streak 4 | . 4 Penetration Max . | . . Secondary Targets 2 | . 2 Max Gunslinging Chain 1 | . 1 Shots Hit Robots 25 | . 25 Core Hits 14 | . 14 Critical Kills . | . . Critical Parts Destroyed . | . . Critical Strikes . | . . Melee Attacks . | . . Impact . | . . Slashing . | . . Piercing . | . . Sneak Attacks . | . . Combat Hostiles . | . . Follow-up Attacks . | . . Damage Inflicted 616 | . 616 Guns 234 | . 234 Cannons . | . . Explosions 382 | . 382 Melee . | . . Ramming . | . . Kinetic 97 | . 97 Thermal 83 | . 83 Explosive 299 | . 299 Electromagnetic 137 | . 137 Impact . | . . Slashing . | . . Piercing . | . . Highest Corruption 1 | . 1 Average Corruption 1 | . 1 Corruption Purged . | . . Corruption Blocked . | . . Effects 9 | . 9 Message Errors 2 | . 2 Matter Fused 2 | . 2 Heat Flow Errors 2 | . 2 Data Loss (minor) 1 | . 1 Data Loss (major) 1 | . 1 Weapon Failures 1 | . 1 Overload Shots . | . . Overflow Damage 120 | . 120 Projectiles . | . . Explosions 120 | . 120 Melee . | . . Knockbacks . | . . Impact . | . . Kinetic . | . . Secondary . | . . Self-Inflicted Damage 260 | . 260 Shots 3 | . 3 Rammed . | . . Targets Rammed . | . . Kicked . | . . Crushed . | . . Highest Temperature 176 | . 176 Average Temperature 42 | . 42 Received Heat Transfer 6 | . 6 Siege Activations . | . . Martial Activations . | . . Shielding Activations . | . . Robots Disrupted . | . . Combat Hostiles . | . . Robots Corrupted 1 | . 1 Combat Hostiles . | . . Parts Fried . | . . Impact Corruptions . | . . Robots Melted . | . . Combat Hostiles . | . . Parts Melted . | . . Heat Transferred 100 | . 100 Parts Sabotaged . | . . Parts Stolen . | . . Parts Stripped . | . . Power Chain Reactions 1 | . 1 Alert | -11 -10 ------- Run | Yrd Mat Maximum Alert Level . | . . Low Security (%) 100 | 100 100 Level 1 . | . . Level 2 . | . . Level 3 . | . . Level 4 . | . . Level 5 . | . . High Security . | . . Max Security . | . . Peak Influence 75 | . 75 Initial . | . . Average 10 | . 11 Influence Increases 334 | . 334 Destroy 0b10 Robot/C 200 | . 200 Destroy 0b10 Robot/NC 5 | . 5 Destroy Leader 40 | . 40 Successful Hack 4 | . 4 Disable Machine 45 | . 45 Destroy Structure 25 | . 25 Partial Spotted 15 | . 15 Influence Decreases 174 | . 174 Time Decay 134 | . 134 Lost Part 40 | . 40 Squads Dispatched 1 | . 1 Investigation . | . . Extermination . | . . Reinforcement 1 | . 1 Assault . | . . Garrison . | . . Intercept . | . . Searches Triggered . | . . Construction Impeded . | . . Haulers Reinforced . | . . Active Scanning Responses . | . . Cargo Convoy Interrupts . | . . Stealth | -11 -10 --------- Run | Yrd Mat Distress Signals 2 | . 2 Communications Jammed . | . . Distress Signals . | . . Times Spotted 18 | . 18 Peak Tracking Total 6 | . 6 Tactical Retreats 3 | . 3 Traps | -11 -10 ------- Run | Yrd Mat Traps Triggered 1 | . 1 Indirectly . | . . Trap Hack Attempts . | . . Triggered . | . . Disarmed 3 | . 3 Reprogrammed . | . . Reused . | . . Traps Extracted . | . . Installed . | . . Triggered . | . . Machines | -11 -10 ---------- Run | Yrd Mat Machines Disabled 3 | . 3 Max in Single Turn 2 | . 2 Machines Repaired . | . . Machines Dismantled . | . . Machines Sabotaged . | . . Overloaded Fab Kills . | . . Hacking | -11 -10 --------- Run | Yrd Mat Machines Accessed 1 | . 1 Terminals 1 | . 1 Fabricators . | . . Repair Stations . | . . Recycling Units . | . . Scanalyzers . | . . Garrison Access . | . . Total Hacks 3 | . 3 Successful 3 | . 3 Failed . | . . Catastrophic . | . . Database Lockouts . | . . Manual . | . . Terminals 3 | . 3 Fabricators . | . . Repair Stations . | . . Recycling Units . | . . Scanalyzers . | . . Garrison Access . | . . Terminal Hacks 3 | . 3 Emergency Access Points 1 | . 1 Locate Traps 1 | . 1 Disarm Traps 1 | . 1 Fabricator Hacks . | . . Repair Station Hacks . | . . Recycling Unit Hacks . | . . Scanalyzer . | . . Garrison Access Hacks . | . . Unauthorized Hacks . | . . Terminals . | . . Fabricators . | . . Repair Stations . | . . Recycling Units . | . . Scanalyzers . | . . Garrison Access . | . . Data Cores Recovered . | . . Used . | . . Hacking Detections 1 | . 1 Full Trace Events 1 | . 1 Feedback Events . | . . Feedback Blocked . | . . Robot Schematics Acquired . | . . Robots Built . | . . Authchips . | . . Time . | . . Total Robot Build Rating . | . . Part Schematics Acquired . | . . Parts Built . | . . Authchips . | . . Time . | . . Total Part Build Rating . | . . Parts Repaired . | . . Time . | . . Parts Recycled . | . . Recycled Matter . | . . Retrieved Matter . | . . Retrieved Components . | . . Parts Scanalyzed . | . . Part Schematics Acquired . | . . Parts Damaged . | . . Bothacking | -11 -10 ------------ Run | Yrd Mat Used RIF Installer . | . . Robots Hacked . | . . Non-combat . | . . Combat . | . . Robot Hacks Applied . | . . Relay Couplers Released . | . . Fabnet Peak Effective % . | . . Robots Rewired . | . . Allies Hacked . | . . Hacks Repelled . | . . Allies | -11 -10 -------- Run | Yrd Mat Total Allies . | . . Largest Group . | . . Highest-Rated Group . | . . Highest-Rated Ally . | . . Total Orders . | . . Ally Attacks . | . . Total Damage . | . . Kills . | . . Allies Corrupted . | . . Allies Melted . | . . Intel | -11 -10 ------- Run | Yrd Mat Active Infowar (turns) 709 | . 709 ECM 709 | . 709 Robot Analysis Total . | . . Derelict Logs Recovered . | . . Drone Launches . | . . Drone Recoveries . | . . Exploration | -11 -10 ------------- Run | Yrd Mat Turns Passed 781 | 55 726 Spaces Moved 395 | 55 340 Core 1 | 1 . Treads . | . . Legs . | . . Wheels 378 | 54 324 Hover . | . . Flight 16 | . 16 Fastest Speed 50 | 50 80 Average Speed 165 | 79 178 Slowest Speed 1725 | 80 1725 Overloaded Moves . | . . Propulsion Burnouts . | . . Robots Hopped . | . . Potential Cave-ins . | . . Cave-ins Triggered . | . . Exploration Rate (%) 19 | 4 34 Regions Visited 1 Branch Regions . Pre-discovered Areas . | . . Known Exits Taken . | . . Unknown Exits Taken 1 | 1 . Scrap Searched . | . . Spaces Dug . | . . Terrain Destroyed 34 | . 34 Melee . | . . Projectile . | . . AOE 34 | . 34 Terrain Rammed . | . . Walls Destroyed . | . . Machines Disabled . | . . Actions | -11 -10 --------- Run | Yrd Mat Total 480 | 63 417 Wait 35 | . 35 Move 394 | 54 340 Hop . | . . Pick Up 5 | 2 3 Fast Attach 7 | 5 2 Attach 5 | 1 4 Detach 2 | . 2 Swap 3 | 1 2 Drop 2 | . 2 Fire 27 | . 27 Melee . | . . Ram . | . . Kick . | . . Crush . | . . Escape Stasis . | . . Rewire . | . . Trap . | . . Miscellaneous . | . . Route ------- -11/Scrapyard -10/Materials (discovered 1 exit: [*Min]) History --------- Turn | Location | Event 31 | -11/Scrapyard | Discovered new exit (range 15) 56 | -11/Scrapyard | Entered Materials 321 | -10/Materials | Build established: Mutant 403 | -10/Materials | Lost 3 parts (1n2w) 718 | -10/Materials | Discovered new exit (range 7) 782 | -10/Materials | Destroyed self via exploding Nuclear Reactor Last Messages --------------- 00718_ EXIT=FOUND 00721_ T-07 Excavator is excavating. 00734_ K-01 Serf cleans the Neutrino Reactor. 00736_ U-05 Engineer lays Concrete. 00737_ ALERT: Hostiles spotted, dispatching reinforcements to Terminal M007. 00740_ T-07 Excavator is excavating. 00759_ W-16 Scout sends out distress signal. 00763_ RVVUEGWZ:BVDLUJ1AH Z7 00778_ S-10 Pest destroyed. 00778_ Switching to secondary target: S-10 Pest. 00780_ G-34 Mercenary destroyed. 00782_ Nuclear Reactor explodes. 00782_ Lgt. Ion Engine destroyed. 00782_ Destroyed Lgt. Ion Engine. 00782_ Destroyed Lgt. Assault Rifle. 00782_ S-10 Pest destroyed. 00782_ Nuclear Reactor explodes. 00782_ S-10 Pest destroyed. 00782_ G-34 Mercenary destroyed. Map ----- +----------------------------------------------------+ | ?????????????????????????# #??# ! #??# #?????? | | ?????????????????????????# #??# #??# #?????? | | ????????????????########## #### #??# #?????? | | ???????????? #??# #?????? | | ???????????? #??# #?????? | | ???????????? [ #??# #?????? | | ?????????????#### #####+####??# #?????? | | ????????????????# """ #?# #??# #?????? | | ????????????????# """ ""#?# | #??# #?????? | | ????????????????# """ T"#?# #??# #?????? | | ????????????????# ""#?# """" #??# #?????? | | ????????????????# ### """" #??# #?????? | | ????????????#???# + """" #??# #?????? | | ????????????# ??# ############??# #?????? | | ????????????# ?# #??#######????# #?????? | | ???????+???###+## ## ###?? #????? | | ???????????# " #????? | | ???????+???# < "T #????? | | ???????????# """ #????? | | ????^??^???# """ u ####### #####! ????? | | ?????^?????# """ # *# "!"|" #???## ???? | | ???????????w """ %* [% ""!"|""#????# ??? | | ???????^?^?# k = =[ #####?????? ??? | | ???????????# #?????????? ?? | | ???????^???# #### = #?????????? =[[ #? | | ???????????# ???# @ #????????????=[[ "#? | | ???????????# ????# #??????????????[ T?? | | ???????????# ????# ##???????????????????? | | ???????????#??????#u #????????????????????? | | ??????????????????# #????????????????????? | | ??????????????????# # ###????????????????????? | | ??????????????????# # #??????????????????????? | | ??????????????????? #######??????????????????????? | | ??????????????????? ?????????????????????????????? | | ??????????????????? ?????????????????????????????? | | ??????????????????? ?????????????????????????????? | | ??????????????????? ?????????????????????????????? | | ?????????????????????????????????????????????????? | | ?????????????????????????????????????????????????? | | ?????????????????????????????????????????????????? | | ?????????????????????????????????????????????????? | | ?????????????????????????????????????????????????? | | ?????????????????????????????????????????????????? | | ?????????????????????????????????????????????????? | | ?????????????????????????????????????????????????? | | ?????????????????????????????????????????????????? | | ?????????????????????????????????????????????????? | | ?????????????????????????????????????????????????? | | ?????????????????????????????????????????????????? | | ?????????????????????????????????????????????????? | +----------------------------------------------------+ Best States ------------- Heat Dissipation 25 Energy Generation 10 Energy Capacity 250 Matter Stores 300 Matter Capacity 300 Sight Range 16 Terrain Scan Density 10 ECM Strength 1 Evasion (%) 44 Item Schematics ----------------- None Robot Schematics ------------------ None Fabricated ------------ Nothing Repaired ---------- Nothing Alien Tech Used ----------------- None Achievements -------------- None Challenges ------------ None Game ------ Seed CannonArchitectFocus Manual? 0 Play Time 00:11:24 Cumulative 12.6 hours Start 2025.09.05 @ 23:44:38 End 2025.09.23 @ 18:56:54 Sessions 3 Manual Loads 0 Difficulty Rogue Special Mode None Game No. 9 Rogue 6 Adventurer 3 Explorer 0 Win Type - Total 0 Types 0/0/0/0/0/0/0/0/0/0 Lore% 9 Gallery% 10 Achievement% 12 Wizard Run 0 Options --------- Layout 1 ASCII 0 Keyboard 0 Movement Vi Keybinds 0 Fullscreen 0 Font 20/Terminus Map View 64x48 Zoom Use 0% Tactical HUD 1 Map Filters NONE Filters NONE Steam 1 RUN: 50a17577-796b-4dd7-970d-ee96edb38057